Cogmind - Beta 16 --- EXPLORER MODE // 2025.12.09 @ 13:46:55 Player: K.K.Y. Result: Core destroyed Performance ------------- Evolutions (4) 2000 Regions Visited (6) 1200 Robots Destroyed (89) 445 Value Destroyed (3322) 3322 Prototype IDs (16) 320 Alien Tech Used (0) 0 Bonus (30) 30 TOTAL SCORE: 7317 Bonus ------- Follower Combat Kills 30 Cogmind --------- Core Integrity 0/850 Matter 19/300 Energy 135/170 System Corruption 6% Temperature Critical (504) Movement Walking (455) Ox5 Location -6/Factory Parts ------- > --- POWER (2) -------- Light Antimatter Reactor > --- PROPULSION (4) --- Flexi-carbon Leg > --- UTILITY (7) ------ Huge Storage Unit Advanced Signal Interpreter Advanced Terrain Scan Processor Advanced ECM Suite > --- WEAPON (3) ------- Heavy Plasma Cannon Heavy Plasma Cannon Heavy Machine Gun > --- INVENTORY (25) --- Wheel Cesium-ion Thruster Nuclear Pulse Thruster Medium Storage Unit ECM Suite ECM Suite Advanced ECM Suite Advanced ECM Suite Advanced ECM Suite Hacking Suite Authchip [R/Combat] Authchip [R/Combat] Authchip [R/Combat] Authchip [R/Combat] Authchip [R/Combat] Field Laser Plasma Cannon Improved Remote Datajack Chainsword Chainsword Peak State ------------ > --- POWER ------------ Enhanced Nuclear Core Light Angular Momentum Engine > --- PROPULSION ------- Carbon-fiber Leg Carbon-fiber Leg Improved VSS Leg > --- UTILITY ---------- Advanced Heat Sink Huge Storage Unit Improved Trap Scanner Advanced Signal Interpreter Advanced Terrain Scan Processor Advanced ECM Suite > --- WEAPON ----------- Gatling Laser Gauss Rifle Antimatter Cannon > --- INVENTORY -------- Light Antimatter Reactor Flexi-carbon Leg Wheel Cesium-ion Thruster Nuclear Pulse Thruster Medium Storage Unit ECM Suite ECM Suite Advanced ECM Suite Advanced ECM Suite Advanced ECM Suite Hacking Suite Authchip [R/Combat] Authchip [R/Combat] Authchip [R/Combat] Authchip [R/Combat] Authchip [R/Combat] Field Laser Plasma Cannon Heavy Plasma Cannon Heavy Plasma Cannon Heavy Machine Gun Improved Remote Datajack Chainsword Ripper [Rating: 68] Favorites ----------- Power Makeshift Power Source Engine Makeshift Power Source Power Core Micro Nuclear Core Reactor Light Antimatter Reactor Propulsion Flight Unit Leg Improved VSS Leg Wheel Wheel Flight Unit Flight Unit Utility Structural Scanner Device Structural Scanner Storage Huge Storage Unit Processor Advanced Terrain Scan Processor Weapon Beam Rifle Energy Gun Beam Rifle Energy Cannon Heavy Plasma Cannon Ballistic Gun Barrage Gun Ballistic Cannon Antimatter Cannon Special Weapon Mining Laser Slashing Weapon Ripper Build | -11 -10 -10 -10 -8 -8 -6 ------- Run | Yrd Mat Min Sub Rec Scr Fac Slots Evolved 9 | . 1 . . . . 8 Power 1 | . . . . . . 1 Propulsion 2 | . 1 . . . . 1 Utility 5 | . . . . . . 5 Weapon 1 | . . . . . . 1 Parts Attached 68 | 6 10 4 13 1 1 33 Power 12 | 1 1 1 2 . . 7 Engine 6 | 1 1 1 2 . . 1 Core 5 | . . . . . . 5 Reactor 1 | . . . . . . 1 Propulsion 21 | 2 4 . 5 . 1 9 Treads . | . . . . . . . Leg 5 | . . . . . . 5 Wheel 2 | 2 . . . . . . Hover . | . . . . . . . Flight 14 | . 4 . 5 . 1 4 Utility 15 | 1 3 1 2 . . 8 Device 12 | 1 2 1 2 . . 6 Storage 1 | . 1 . . . . . Processor 2 | . . . . . . 2 Hackware . | . . . . . . . Protection . | . . . . . . . Artifact . | . . . . . . . Weapon 20 | 2 2 2 4 1 . 9 Energy Gun 4 | . . 1 . 1 . 2 Energy Cannon 2 | . . . . . . 2 Ballistic Gun 10 | 2 2 1 2 . . 3 Ballistic Cannon 2 | . . . . . . 2 Launcher . | . . . . . . . Special Weapon 1 | . . . 1 . . . Impact Weapon . | . . . . . . . Slashing Weapon 1 | . . . 1 . . . Piercing Weapon . | . . . . . . . Special Melee Weapon . | . . . . . . . Unidentified Prototypes 4 | . . 1 . . . 3 Parts Lost 38 | . 4 . 5 1 . 28 Power 8 | . 1 . 1 . . 6 Propulsion 14 | . 2 . 2 1 . 9 Utility 7 | . . . 1 . . 6 Weapon 9 | . 1 . 1 . . 7 Highest Loss Streak 6 | . 2 . 3 1 . 6 To Critical Strikes 1 | . . . . . . 1 Average Backups 9 | 3 4 5 4 7 14 22 Power . | . . . . . . . Propulsion . | . . . . . . 1 Utility 6 | 2 3 4 3 6 11 10 Weapon 2 | . 1 1 . 1 3 8 Tool/Special . | . . . . . . . Unused Backups 28 | 1 3 . . . . 24 Power 1 | . . . . . . 1 Propulsion 3 | . . . . . . 3 Utility 13 | . 2 . . . . 11 Weapon 9 | 1 1 . . . . 7 Tool/Special 2 | . . . . . . 2 Average Slot Usage (%) 91 | . 63 99 99 88 96 68 Engine 10 | . 10 12 11 12 12 2 Core 1 | . . . . . . 8 Flight 30 | . 12 37 36 26 33 11 Device 20 | . 13 25 24 18 12 15 Storage 3 | . . . . 6 12 6 Energy Gun 10 | . . 7 12 12 12 5 Ballistic Gun 10 | . 23 16 11 12 12 3 Peak Build Rating 68 | 6 9 21 17 16 23 68 Average Rating 22 | 1 5 13 15 15 20 50 On Entrance 12 | . 6 9 15 16 16 23 Avg Prop Armor Cover (%) . | . . . . . . . Naked Turns . | . . . . . . . Heaviest Build 124 | 7 8 16 16 91 91 124 Greatest Support 45 | 20 20 18 18 12 14 45 Greatest Overweight (x) 33 | . 2 . 1 11 11 33 Average Overweight (x) 1 | . . . . 1 6 3 Largest Inventory Capacity 25 | 5 25 5 5 25 25 25 Average Capacity 12 | 5 5 5 5 15 25 25 Most Carried 25 | 5 5 5 5 10 18 25 Average Carried 10 | 3 4 5 4 7 14 22 Final Capacity 25 | 5 5 5 5 25 25 25 Final Carried 20 | 3 5 5 5 10 18 20 Class Distribution -------------------- 54% | Scavenger-Mutant 37% | Hacker-Mutant 8% | Hacker-Skirmisher Dominant Class ---------------- Hacker-Mutant | -10/Materials Scavenger-Mutant | -10/Mines Scavenger-Mutant | -10/Subcaves Hacker-Mutant | -8/Recycling Hacker-Mutant | -8/Scraptown Hacker-Mutant | -6/Factory Resources | -11 -10 -10 -10 -8 -8 -6 ----------- Run | Yrd Mat Min Sub Rec Scr Fac Matter Collected 1880 | 252 174 45 424 49 32 904 Remotely . | . . . . . . . Salvage Created 3260 | 103 434 88 360 226 . 2049 Parts 154 | 10 23 5 17 10 . 89 Haulers Intercepted 3 | . 2 . . . . 1 Recyclers Shooed 5 | . . . . . . 5 Parts Field Recycled . | . . . . . . . Retrieved Matter . | . . . . . . . Parts Self-Destructed . | . . . . . . . Prevented . | . . . . . . . Parts Restored . | . . . . . . . Kills | -11 -10 -10 -10 -8 -8 -6 ------- Run | Yrd Mat Min Sub Rec Scr Fac Combat Hostiles Destroyed 58 | . 6 2 9 4 . 37 Guns 36 | . 6 2 9 4 . 15 Cannons 20 | . . . . . . 20 Classes Destroyed 15 | 2 4 . 3 . . 6 Worker 7 | . . . . . . 7 Builder 2 | . . . . . . 2 Tunneler 3 | 2 . . . . . 1 Hauler 3 | . 2 . . . . 1 Recycler 5 | 1 1 . . . . 3 Mechanic 1 | . . . . . . 1 Turret 2 | . . . 2 . . . Watcher 8 | . 3 . . . . 5 Swarmer 10 | . 2 . 1 . . 7 Grunt 21 | . 4 2 . . . 15 Brawler 2 | . . . . . . 2 Sentry 7 | . . . 1 4 . 2 Hunter 4 | . . . . . . 4 Programmer 7 | . . . . . . 7 Subdweller 7 | . . . 7 . . . Best Kill Streak 9 | 2 3 2 3 1 . 9 Combat Bots Only 5 | . 2 2 1 1 . 5 Max Kills in Single Turn 4 | 2 1 1 1 1 . 4 Gunslinging . | . . . . . . . Exploded . | . . . . . . . Melee . | . . . . . . . Uniques/NPCs Destroyed . | . . . . . . . Combat | -11 -10 -10 -10 -8 -8 -6 -------- Run | Yrd Mat Min Sub Rec Scr Fac Hostile Shots Fired 551 | . 32 8 73 18 . 420 Missed 161 | . 8 3 27 6 . 117 Hits 390 | . 24 5 46 12 . 303 Melee 1 | . . . . . . 1 Projectile 389 | . 24 5 46 12 . 302 Critical Strikes 10 | . . . . . . 10 Damage Taken 4153 | . 324 36 402 118 . 3273 Core 1050 | . 69 6 68 26 . 881 Absorbed by Shields . | . . . . . . . Ignored by Resistances 2440 | . 195 22 247 70 . 1906 Core Remaining (%) 66 | 100 . . . . 32 . Volleys Fired 284 | 7 38 5 84 14 . 136 Largest 3 | 2 2 2 2 2 . 3 Hottest 210 | 40 40 79 156 84 . 210 Shots Fired 560 | 14 72 10 159 28 . 277 Gun 445 | 14 72 10 149 28 . 172 Cannon 105 | . . . . . . 105 Launcher . | . . . . . . . Special 10 | . . . 10 . . . Kinetic 348 | 14 72 5 65 14 . 178 Thermal 212 | . . 5 94 14 . 99 Explosive . | . . . . . . . Electromagnetic . | . . . . . . . Robot Hit Streak 31 | 8 16 7 26 31 . 30 Robot Miss Streak 3 | 1 3 1 1 1 . 2 Penetration Max 1 | . . . . . . 1 Secondary Targets 3 | . 1 1 . . . 1 Max Gunslinging Chain 1 | . 1 1 . . . 1 Shots Hit Robots 377 | 12 58 9 60 24 . 214 Core Hits 178 | 6 28 5 22 7 . 110 Critical Kills . | . . . . . . . Critical Parts Destroyed 1 | . . . . . . 1 Critical Strikes 14 | . . . 3 1 . 10 Burn 7 | . . . 3 1 . 3 Destroy 2 | . . . . . . 2 Blast 5 | . . . . . . 5 Melee Attacks . | . . . . . . . Impact . | . . . . . . . Slashing . | . . . . . . . Piercing . | . . . . . . . Sneak Attacks . | . . . . . . . Combat Hostiles . | . . . . . . . Follow-up Attacks . | . . . . . . . Damage Inflicted 8664 | 111 554 130 917 387 . 6565 Guns 4859 | 111 468 130 869 387 . 2894 Cannons 2992 | . . . . . . 2992 Explosions 760 | . 86 . . . . 674 Melee . | . . . . . . . Ramming 5 | . . . . . . 5 Kinetic 5211 | 111 468 73 379 186 . 3994 Thermal 2939 | . . 57 538 201 . 2143 Explosive 509 | . 86 . . . . 423 Electromagnetic . | . . . . . . . Impact . | . . . . . . . Slashing . | . . . . . . . Piercing . | . . . . . . . Highest Corruption 6 | . . . . . . 6 Average Corruption 2 | . . . . . . 2 Corruption Purged . | . . . . . . . Corruption Blocked . | . . . . . . . Effects 32 | . . . . . . 32 Message Errors 5 | . . . . . . 5 Matter Fused 5 | . . . . . . 5 Heat Flow Errors 7 | . . . . . . 7 Energy Discharges 5 | . . . . . . 5 Parts Fused 1 | . . . . . . 1 Data Loss (minor) 3 | . . . . . . 3 Data Loss (major) 2 | . . . . . . 2 Misfires 2 | . . . . . . 2 Alerts 1 | . . . . . . 1 Weapon Failures 1 | . . . . . . 1 Overload Shots . | . . . . . . . Overflow Damage 572 | . 91 . . . . 481 Projectiles 307 | . . . . . . 307 Explosions 265 | . 91 . . . . 174 Melee . | . . . . . . . Knockbacks 21 | . . . . . . 21 Impact . | . . . . . . . Kinetic 21 | . . . . . . 21 Secondary . | . . . . . . . Self-Inflicted Damage 338 | . 95 . . . . 243 Shots 7 | . 2 . . . . 5 Rammed . | . . . . . . . Targets Rammed 1 | . . . . . . 1 Kicked 1 | . . . . . . 1 Crushed . | . . . . . . . Highest Temperature 504 | . 30 201 40 252 . 504 Average Temperature 68 | . 10 104 14 99 . 74 Received Heat Transfer 1311 | . 162 36 192 36 . 885 Effects 5 | . . . . 2 . 3 Energy Bleed 1 | . . . . . . 1 Interference 2 | . . . . 2 . . Short Circuit 1 | . . . . . . 1 Damage (core) 1 | . . . . . . 1 Siege Activations . | . . . . . . . Martial Activations . | . . . . . . . Shielding Activations . | . . . . . . . Robots Disrupted . | . . . . . . . Combat Hostiles . | . . . . . . . Robots Corrupted . | . . . . . . . Combat Hostiles . | . . . . . . . Parts Fried . | . . . . . . . Impact Corruptions . | . . . . . . . Robots Melted 2 | . . . . . . 2 Combat Hostiles 2 | . . . . . . 2 Parts Melted 10 | . . . 2 1 . 7 Heat Transferred 6337 | . . 148 1580 592 . 4017 Parts Sabotaged 4 | . . . . . . 4 Parts Stolen . | . . . . . . . Parts Stripped . | . . . . . . . Power Chain Reactions . | . . . . . . . Alert | -11 -10 -10 -10 -8 -8 -6 ------- Run | Yrd Mat Min Sub Rec Scr Fac Maximum Alert Level 1 | . . . . . . 1 Low Security (%) 99 | 100 100 100 . 100 . 99 Level 1 . | . . . . . . . Level 2 . | . . . . . . . Level 3 . | . . . . . . . Level 4 . | . . . . . . . Level 5 . | . . . . . . . High Security . | . . . . . . . Max Security . | . . . . . . . Peak Influence 206 | 10 74 35 . 28 . 206 Initial . | . . . . . . . Average 18 | . 12 3 . 1 . 26 Influence Increases 1847 | 15 229 50 95 115 . 1343 Destroy 0b10 Robot/C 1060 | . 120 40 80 80 . 740 Destroy 0b10 Robot/NC 145 | 15 30 . . . . 100 Destroy Leader 270 | . 40 10 . . . 220 Successful Hack 35 | . . . . 35 . . Disable Machine 132 | . 8 . . . . 124 Destroy Structure 160 | . 31 . . . . 129 Lose Combat Pursuer 45 | . . . 15 . . 30 Influence Decreases 1805 | 15 229 50 95 115 . 1301 Time Decay 1555 | 15 189 50 85 115 . 1101 Lost Part 250 | . 40 . 10 . . 200 Squads Dispatched 17 | . . . . . . 17 Investigation 2 | . . . . . . 2 Extermination 6 | . . . . . . 6 Reinforcement 3 | . . . . . . 3 Assault 1 | . . . . . . 1 Garrison 5 | . . . . . . 5 Intercept . | . . . . . . . Searches Triggered . | . . . . . . . Construction Impeded 1 | . . . . . . 1 Haulers Reinforced . | . . . . . . . Active Scanning Responses . | . . . . . . . Cargo Convoy Interrupts . | . . . . . . . Stealth | -11 -10 -10 -10 -8 -8 -6 --------- Run | Yrd Mat Min Sub Rec Scr Fac Distress Signals 2 | . . . . . . 2 Communications Jammed . | . . . . . . . Distress Signals . | . . . . . . . Times Spotted 87 | . 14 2 14 3 . 54 Peak Tracking Total 6 | . 4 2 2 1 . 6 Tactical Retreats 5 | . 1 . 1 . . 3 ECM-based Alert Blocks 4 | . 3 . . . . 1 Traps | -11 -10 -10 -10 -8 -8 -6 ------- Run | Yrd Mat Min Sub Rec Scr Fac Traps Triggered 3 | . 2 . . . . 1 Indirectly . | . . . . . . . Trap Hack Attempts . | . . . . . . . Triggered . | . . . . . . . Disarmed . | . . . . . . . Reprogrammed . | . . . . . . . Reused . | . . . . . . . Traps Extracted . | . . . . . . . Installed 5 | . . 5 . . . . Triggered . | . . . . . . . Machines | -11 -10 -10 -10 -8 -8 -6 ---------- Run | Yrd Mat Min Sub Rec Scr Fac Machines Disabled 35 | . 2 . 2 . . 31 Max in Single Turn 12 | . 2 . 1 . . 12 Garrison Access 1 | . . . . . . 1 Machines Repaired . | . . . . . . . Machines Dismantled . | . . . . . . . Machines Sabotaged . | . . . . . . . Overloaded Fab Kills . | . . . . . . . Hacking | -11 -10 -10 -10 -8 -8 -6 --------- Run | Yrd Mat Min Sub Rec Scr Fac Machines Accessed 29 | . 10 1 2 11 . 5 Terminals 15 | . 8 . . 6 . 1 Fabricators 1 | . . . . . . 1 Repair Stations 1 | . . . . . . 1 Recycling Units 8 | . 2 . . 5 . 1 Scanalyzers 1 | . . . . . . 1 Garrison Access . | . . . . . . . Total Hacks 64 | . 17 1 6 30 . 10 Successful 45 | . 9 1 6 22 . 7 Failed 19 | . 8 . . 8 . 3 Catastrophic 1 | . . . . . . 1 Database Lockouts . | . . . . . . . Manual 33 | . 16 . . 16 . 1 Terminals 37 | . 15 . . 19 . 3 Fabricators 1 | . . . . . . 1 Repair Stations 1 | . . . . . . 1 Recycling Units 16 | . 2 . . 11 . 3 Scanalyzers 2 | . . . . . . 2 Garrison Access . | . . . . . . . Terminal Hacks 14 | . . 1 6 7 . . Record 5 | . . . 5 . . . Part Schematic 6 | . . . . 6 . . Open Door 1 | . . 1 . . . . Machine Index 1 | . . . . 1 . . Proto ID Catalog 1 | . . . 1 . . . Fabricator Hacks 1 | . . . . . . 1 Network Status 1 | . . . . . . 1 Repair Station Hacks . | . . . . . . . Recycling Unit Hacks 9 | . 2 . . 4 . 3 Process 1 | . . . . . . 1 Report Inventory 1 | . . . . . . 1 Retrieve Matter 1 | . . . . . . 1 Retrieve Components 6 | . 2 . . 4 . . Scanalyzer 2 | . . . . . . 2 Retrieve Study 2 | . . . . . . 2 Garrison Access Hacks . | . . . . . . . Unauthorized Hacks 19 | . 7 . . 11 . 1 Terminals 14 | . 7 . . 6 . 1 Botnet 14 | . 7 . . 6 . 1 Fabricators . | . . . . . . . Repair Stations . | . . . . . . . Recycling Units 5 | . . . . 5 . . Reject 5 | . . . . 5 . . Scanalyzers . | . . . . . . . Garrison Access . | . . . . . . . Data Cores Recovered . | . . . . . . . Used . | . . . . . . . Hacking Detections 15 | . 5 . . 6 . 4 Full Trace Events 5 | . 1 . . 2 . 2 Feedback Events . | . . . . . . . Feedback Blocked . | . . . . . . . Robot Schematics Acquired . | . . . . . . . Robots Built . | . . . . . . . Authchips . | . . . . . . . Time . | . . . . . . . Total Robot Build Rating . | . . . . . . . Part Schematics Acquired 6 | . . . . 6 . . Parts Built . | . . . . . . . Authchips . | . . . . . . . Time . | . . . . . . . Total Part Build Rating . | . . . . . . . Part Studies Acquired 2 | . . . . . . 2 Parts Repaired . | . . . . . . . Time . | . . . . . . . Parts Recycled . | . . . . . . . Recycled Matter 8 | . . . . . . 8 Retrieved Matter . | . . . . . . . Retrieved Components 18 | . 8 . . 10 . . Parts Scanalyzed . | . . . . . . . Part Schematics Acquired . | . . . . . . . Parts Damaged . | . . . . . . . Bothacking | -11 -10 -10 -10 -8 -8 -6 ------------ Run | Yrd Mat Min Sub Rec Scr Fac Used RIF Installer . | . . . . . . . Robots Hacked . | . . . . . . . Non-combat . | . . . . . . . Combat . | . . . . . . . Robot Hacks Applied . | . . . . . . . Relay Couplers Released 3 | . . . . . . 3 Programmers 3 | . . . . . . 3 Fabnet Peak Effective % . | . . . . . . . Robots Rewired . | . . . . . . . Allies Hacked . | . . . . . . . Hacks Repelled . | . . . . . . . Allies | -11 -10 -10 -10 -8 -8 -6 -------- Run | Yrd Mat Min Sub Rec Scr Fac Total Allies 2 | . . 2 . . . . Largest Group 2 | . . 2 2 1 1 . Highest-Rated Group 50 | . . 50 50 31 31 . Highest-Rated Ally 31 | . . 31 31 31 31 . Total Orders . | . . . . . . . Ally Attacks 9 | . . . 4 5 . . Total Damage 141 | . . . 40 101 . . Kills 1 | . . . 1 . . . Allies Corrupted . | . . . . . . . Allies Melted . | . . . . . . . Intel | -11 -10 -10 -10 -8 -8 -6 ------- Run | Yrd Mat Min Sub Rec Scr Fac Active Infowar (turns) 17644 | 4 235 381 9681 1157 3417 2769 Sensors 1947 | . 48 381 179 . . 1339 Terrain 11021 | . . . 9387 573 . 1061 Structural 14674 | . . . 9142 1157 3417 958 Traps 1811 | . . . . . . 1811 ECM 746 | 4 187 . . . . 555 Robot Analysis Total . | . . . . . . . Derelict Logs Recovered 2 | . . . 2 . . . Drone Launches . | . . . . . . . Drone Recoveries . | . . . . . . . Exploration | -11 -10 -10 -10 -8 -8 -6 ------------- Run | Yrd Mat Min Sub Rec Scr Fac Turns Passed 18980 | 70 580 384 9920 1157 3417 3452 Spaces Moved 7794 | 59 711 723 4223 651 574 853 Core 258 | 56 191 . . . . 11 Treads . | . . . . . . . Legs 353 | . . . . . . 353 Wheels 56 | 3 53 . . . . . Hover . | . . . . . . . Flight 7127 | . 467 723 4223 651 574 489 Fastest Speed 34 | 50 34 34 34 34 514 250 Average Speed 122 | 51 59 34 36 163 587 337 Slowest Speed 1700 | 80 150 34 120 917 917 1700 Overloaded Moves . | . . . . . . . Propulsion Burnouts . | . . . . . . . Robots Hopped 4 | . 1 3 . . . . Potential Cave-ins . | . . . . . . . Cave-ins Triggered . | . . . . . . . Exploration Rate (%) 67 | 3 96 99 98 99 55 24 Regions Visited 6 Branch Regions 4 Pre-discovered Areas 3 | . . 1 2 . . . Known Exits Taken 6 | 1 1 1 1 1 1 . Unknown Exits Taken . | . . . . . . . Scrap Searched 15 | . . 1 11 . 3 . Spaces Dug 5 | . . . . . . 5 Terrain Destroyed 161 | . 30 . . . . 131 Melee . | . . . . . . . Projectile 16 | . . . . . . 16 AOE 145 | . 30 . . . . 115 Terrain Rammed . | . . . . . . . Walls Destroyed . | . . . . . . . Machines Disabled . | . . . . . . . Actions | -11 -10 -10 -10 -8 -8 -6 --------- Run | Yrd Mat Min Sub Rec Scr Fac Total 16688 | 86 810 848 12430 724 621 1169 Wait 8438 | 6 41 109 8097 50 38 97 Move 7780 | 58 708 716 4222 650 573 853 Hop 4 | . 1 3 . . . . Pick Up 65 | 8 5 . 3 6 9 34 Fast Attach 25 | 2 7 4 2 . . 10 Attach 33 | 4 1 . 3 . 1 24 Detach 1 | . 1 . . . . . Swap 23 | . 2 1 14 2 . 4 Drop 29 | 1 6 5 5 2 . 10 Fire 284 | 7 38 5 84 14 . 136 Melee . | . . . . . . . Ram . | . . . . . . . Kick 1 | . . . . . . 1 Crush . | . . . . . . . Escape Stasis . | . . . . . . . Rewire . | . . . . . . . Trap 5 | . . 5 . . . . Miscellaneous . | . . . . . . . Route ------- -11/Scrapyard -10/Materials (discovered 4 exits: *Mat x2 / *Min / *Sub) -10/Mines (discovered 3 exits: *Mat x2 / *Sub) -10/Subcaves (discovered 3 exits: *Mat x2 / *Rec) -8/Recycling (discovered 2 exits: *Fac / *Scr) -8/Scraptown -6/Factory (discovered 5 exits: Fac x3 / Low x2) History --------- Turn | Location | Event 2 | -11/Scrapyard | Met Revision 17 6 | -11/Scrapyard | Identified exit to Materials 6 | -11/Scrapyard | Discovered exit to Materials (range 15) 71 | -11/Scrapyard | Entered Materials 71 | -10/Materials | Evolved 1 slot: Propulsion x1 229 | -10/Materials | Identified exit to Materials 229 | -10/Materials | Discovered exit to Materials (range 15) 307 | -10/Materials | Build established: Hacker-Mutant 318 | -10/Materials | Identified exit to Mines 318 | -10/Materials | Discovered exit to Mines (range 15) 472 | -10/Materials | Discovered exit to Materials (range 10) 535 | -10/Materials | Identified exit to Subcaves 535 | -10/Materials | Discovered exit to Subcaves (range 11) 651 | -10/Materials | Entered Mines 652 | -10/Mines | Learned location of Storage (-8) 682 | -10/Mines | Discovered exit to Subcaves (range 5) 694 | -10/Mines | Found a hidden stash of uninstalled traps 756 | -10/Mines | Joined a pair of Derelicts in attacking an 0b10 outpost 840 | -10/Mines | Discovered exit to Materials (range 9) 844 | -10/Mines | Discovered exit to Materials (range 8) 932 | -10/Mines | Found the Drone Emporium 933 | -10/Mines | Found Prototype Device 933 | -10/Mines | Identified Splice Drone Bay 1035 | -10/Mines | Entered Subcaves 1035 | -10/Subcaves | Accompanied by 2 allies 1036 | -10/Subcaves | Identified exit to Materials 1036 | -10/Subcaves | Discovered exit to Materials (range 14) 1040 | -10/Subcaves | Led the pair of lost Derelicts to an unsafe place 1043 | -10/Subcaves | Learned location of Zion (-7) 1043 | -10/Subcaves | Met a Zionite searching for "candidates" 1071 | -10/Subcaves | Build established: Scavenger-Mutant 1089 | -10/Subcaves | A swath of the cavern ceiling suddenly collapsed 1128 | -10/Subcaves | Visited 4L-MR0's lab 1175 | -10/Subcaves | Learned Materials security intel 1267 | -10/Subcaves | Learned location of 1 exit from Materials 1332 | -10/Subcaves | Shifting Twisted Machinery released Sub. Beam Cannon 1390 | -10/Subcaves | Lost 3 parts (1p1n1w) 1740 | -10/Subcaves | Identified exit to Recycling 1740 | -10/Subcaves | Discovered exit to Recycling (range 9) 1742 | -10/Subcaves | Core integrity fell below 50% 1840 | -10/Subcaves | Shifting Twisted Machinery released Flamer 1883 | -10/Subcaves | Discovered exit to Materials (range 9) 1885 | -10/Subcaves | Shifting Twisted Machinery released Barrage Gun 1933 | -10/Subcaves | Shifting Twisted Machinery released Sub. Optics 1943 | -10/Subcaves | Shifting Twisted Machinery released Sub. Laser 2348 | -10/Subcaves | Visited Clippyterm 2349 | -10/Subcaves | Learned location of Deep Caves (-7) 2349 | -10/Subcaves | Learned 40 Factory zone layouts 9947 | -10/Subcaves | Shifting Twisted Machinery released Piercing Trap 10955 | -10/Subcaves | Entered Recycling 10955 | -8/Recycling | Accompanied by 1 ally 11338 | -8/Recycling | Identified exit to Factory 11338 | -8/Recycling | Discovered exit to Factory (range 5) 11834 | -8/Recycling | Build established: Hacker-Mutant 11883 | -8/Recycling | Scanned before Scraplab entrance 11984 | -8/Recycling | Identified exit to Scraptown 11984 | -8/Recycling | Discovered exit to Scraptown (range 11) 12012 | -8/Recycling | Entered Scraplab 12112 | -8/Recycling | Entered Scraptown 12112 | -8/Scraptown | Accompanied by 1 ally 12142 | -8/Scraptown | Led the pair of lost Derelicts to a safe place 13427 | -8/Scraptown | Discovered exit to Factory (range 11) 13797 | -8/Scraptown | Visited Spacefarers 13884 | -8/Scraptown | Visited TADAMA 13956 | -8/Scraptown | Visited Fellowship of the Rings 14581 | -8/Scraptown | Visited Comm Corps 14704 | -8/Scraptown | Visited Artisan Demo Area 15218 | -8/Scraptown | Visited Cave Peace 15280 | -8/Scraptown | Visited CPS Storage 15529 | -8/Scraptown | Entered Factory 15529 | -6/Factory | Evolved 8 slots: Power x1, Propulsion x1, Utility x5, Weapon x1 15530 | -6/Factory | Identified exit to Factory 15530 | -6/Factory | Identified exit to Lower Caves 16541 | -6/Factory | Lost 5 parts (2n1u2w) 17142 | -6/Factory | Build established: Hacker-Skirmisher 17434 | -6/Factory | Lost 4 parts (3n1u) 17923 | -6/Factory | Garrison activated, responded to threat 17955 | -6/Factory | Lost 4 parts (1p1n2u) 18620 | -6/Factory | Garrison activated, responded to threat 18637 | -6/Factory | Core integrity fell below 50% 18716 | -6/Factory | Lost 6 parts (2p1n2u1w) 18807 | -6/Factory | Core integrity fell below 20% 18835 | -6/Factory | Lost 5 parts (2p2n1w) 18934 | -6/Factory | Build established: Hacker-Mutant 18982 | -6/Factory | Core destroyed Last Messages --------------- 18961_ ALERT: Potential suspicious activity detected, Programmers report to Factory Zone 9B. 18969_ R-10 Processor collects Terrain Scanner. 18970_ Destroyed Gravmag System. 18970_ R-10 Processor collects Structural Scanner. 18973_ Target Analyzer melted. 18973_ Remote Datajack melted. 18973_ Mic. Nuclear Core melted. 18973_ Gravmag System melted. 18973_ P-60 Hacker destroyed. 18973_ R-10 Processor collects Imp. Heat Sink. 18976_ Destroyed Shock Rifle. 18977_ R-10 Processor collects Wheel. 18979_ Destroyed Com. Wheel. 18981_ Hvy. Machine Gun broken. 18981_ Overheating: Short circuit. 18981_ R-10 Processor collects Welding Torch. 18982_ Overheating: Core damaged (-119). Map ----- +----------------------------------------------------+ | #????????# # ## #?# """ """ " | | #????#####"""##+#""#### ## #?# """ """ " | | #????# "#### ## #?# """ """ " | | ###### """" # #?# | | + "" # #?# """ """ " | | ###### + #?# """ """ " | | #????# %# #?# """ """ " | | ?????# *** ############# | | ###### === * % % """ """ " | | == * % %% % % """ """ " | | ==! %% % """ """ " | | % % % | | %% % """ """ " | | % """ """ " | | ########+##""""""""" %% """ """ " | | ?# # ####/######## | | ?# # # """"" # """ """ " | | ## # """ """" # """"" # """ """ " | | + # """ """" # """ # """ """ " | | ## "" # """ """" # % # | | ?# "F # """" # R * # """ """ " | | ?# "" # """" #####/#######k """ """ " | | ?# "" # """" #??##p """ """ " | | ?# # #??#; | | ?###### #???# """ | | ### ### #???# @"G" [ ### | | ## # #???#!%" " #?# | | ###################???# """ ######## #?# | | #????????############## """ #??????# #?# | | #????????# # """ #???####+### | | #????????# """"""""" #R #???# # | | #????????# + = #???# # | | #????????# """"""""" # ###+#### #???# + | | #????????# # ## ## #???# # | | #????????###+##+####### ## ## #???# # | | #??????????# + ## #???# ### | | #??????????# ########### ### ## #???########?# | | #??????????# #?????????# #?# ## #????????????# | | ##????????### ###???????# #?# ##+#######??????# | | ??????????# #######?#t#?# # #??????# | | ??????????# # ### ### # """" #??????# | | #######???# < + + + # ""F" ######## | | #???# # ############ # ## | | #???# # #??????????# # ## | | #???### ### #??????????# """ + " | | ####### ### #??????????# """ # ## | | + + #??????????# """ # #? | | #### ###### #??????????# ## ### | | #######??# #????# #???????############## # | | #??# #????# ######### # # | +----------------------------------------------------+ Best States ------------- Heat Dissipation 56 Energy Generation 30 Energy Capacity 510 Matter Stores 300 Matter Capacity 300 Sight Range 16 Robot Scan Range 15 Terrain Scan Range 16 Terrain Scan Density 210 ECM Strength 2 Additional Mass Support 9 Resistance: KI 35 Resistance: TH 35 Resistance: EX 35 Resistance: EM 35 Resistance: I 35 Resistance: S 35 Resistance: P 35 Evasion (%) 63 Offensive Hacking 20 Authchip Count 5 Item Schematics ----------------- Imp. Carbon-fiber Leg | -8/Recycling | Hacked Adv. Melee Analysis Suite | -8/Recycling | Hacked Mic. Nuclear Core | -8/Recycling | Hacked Imp. Trap Scanner | -8/Recycling | Hacked Adv. Signal Interpreter | -8/Recycling | Hacked Lgt. Nuclear Core | -8/Recycling | Hacked Robot Schematics ------------------ None Fabricated ------------ Nothing Repaired ---------- Nothing Studied --------- Flexi-carbon Leg | -6/Factory | Hacked Imp. VSS Leg | -6/Factory | Hacked Alien Tech Used ----------------- None Achievements -------------- None Challenges ------------ None Game ------ Seed SpectralProjectionCanceller Manual? 0 Play Time 00:59:14 Cumulative 181.1 hours Start 2025.12.09 @ 12:50:35 End 2025.12.09 @ 13:46:55 Sessions 1 Manual Loads 0 Difficulty Explorer Special Mode None Game No. 257 Rogue 0 Adventurer 0 Explorer 257 Win Type - Total 0 Types 0/0/0/0/0/0/0/0/0/0 Lore% 70 Gallery% 67 Achievement% 53 Wizard Run 0 Options --------- Layout 1 ASCII 0 Keyboard 0 Movement Mouse Keybinds 0 Fullscreen 1 Font 24/Smallcaps Map View 50x35 Zoom Use 0% Tactical HUD 1 Map Filters NONE Filters NONE Steam 1 RUN: f26ac461-3f95-4f06-8210-328069230709